[Event "*** Titled Tuesday Blitz"]
[Site "Chess.com"]
[Date "2020.05.19"]
[Round "5"]
[White "Vuk2000"]
[Black "adricalderon8"]
[Result "1/2-1/2"]
[WhiteElo "2610"]
[BlackElo "2432"]
[TimeControl "180+1"]
[EndTime "12:58:16 PDT"]
[Termination "Game drawn by repetition"]

1. d4 {[%clk 0:02:59.4]} 1... Nf6 {[%clk 0:02:59.6]} 2. Bg5 {[%clk 0:02:59.3]}
2... Ne4 {[%clk 0:02:59.4]} 3. Bf4 {[%clk 0:02:59.4]} 3... e6 {[%clk 0:02:59.7]}
4. e3 {[%clk 0:02:59.2]} 4... d5 {[%clk 0:02:58.5]} 5. Bd3 {[%clk 0:02:58.7]}
5... c5 {[%clk 0:02:56.9]} 6. c3 {[%clk 0:02:58.5]} 6... Nc6 {[%clk 0:02:56]} 7.
Nf3 {[%clk 0:02:57]} 7... Be7 {[%clk 0:02:52.8]} 8. O-O {[%clk 0:02:56.5]} 8...
O-O {[%clk 0:02:52.8]} 9. Nbd2 {[%clk 0:02:55.1]} 9... f5 {[%clk 0:02:50.8]} 10.
Ne5 {[%clk 0:02:50.4]} 10... Bd7 {[%clk 0:02:29.5]} 11. Ndf3 {[%clk 0:02:40.5]}
11... Be8 {[%clk 0:02:28.6]} 12. Nxc6 {[%clk 0:02:06.8]} 12... bxc6 {[%clk
0:02:26.2]} 13. Bxe4 {[%clk 0:01:55.8]} 13... fxe4 {[%clk 0:02:24]} 14. Ne5
{[%clk 0:01:55.7]} 14... cxd4 {[%clk 0:02:20.6]} 15. cxd4 {[%clk 0:01:54.2]}
15... c5 {[%clk 0:02:21]} 16. Qg4 {[%clk 0:01:18.1]} 16... Rf5 {[%clk
0:02:04.2]} 17. dxc5 {[%clk 0:01:00.4]} 17... Bxc5 {[%clk 0:02:00.2]} 18. Rac1
{[%clk 0:00:59.5]} 18... Bd6 {[%clk 0:01:56.3]} 19. Nc6 {[%clk 0:00:50.5]} 19...
Bxc6 {[%clk 0:01:44.7]} 20. Rxc6 {[%clk 0:00:51.4]} 20... Bxf4 {[%clk
0:01:44.9]} 21. exf4 {[%clk 0:00:38.7]} 21... Qf6 {[%clk 0:01:41.5]} 22. Rfc1
{[%clk 0:00:37.5]} 22... h5 {[%clk 0:01:32.7]} 23. Qe2 {[%clk 0:00:30]} 23...
Rf8 {[%clk 0:01:27.1]} 24. g3 {[%clk 0:00:28.9]} 24... Kh7 {[%clk 0:01:07.1]}
25. Rc7 {[%clk 0:00:22.2]} 25... Kh6 {[%clk 0:01:06.2]} 26. Rxa7 {[%clk
0:00:17.8]} 26... e5 {[%clk 0:00:58]} 27. Rac7 {[%clk 0:00:17.4]} 27... Kh7
{[%clk 0:00:53.8]} 28. R1c6 {[%clk 0:00:16.5]} 28... Qd8 {[%clk 0:00:51]} 29.
fxe5 {[%clk 0:00:16.5]} 29... Rxe5 {[%clk 0:00:43.8]} 30. Qe3 {[%clk 0:00:13.8]}
30... Kg8 {[%clk 0:00:38.3]} 31. Qc3 {[%clk 0:00:11.9]} 31... d4 {[%clk
0:00:33.7]} 32. Qc4+ {[%clk 0:00:08.7]} 32... Qd5 {[%clk 0:00:33.1]} 33. Rc5
{[%clk 0:00:03.8]} 33... Qxc4 {[%clk 0:00:32.4]} 34. Rxc4 {[%clk 0:00:04.7]}
34... Rd8 {[%clk 0:00:31.1]} 35. Rc2 {[%clk 0:00:04.1]} 35... d3 {[%clk
0:00:28.1]} 36. Rd2 {[%clk 0:00:03.6]} 36... e3 {[%clk 0:00:28.5]} 37. fxe3
{[%clk 0:00:04.5]} 37... Rxe3 {[%clk 0:00:29]} 38. Kf2 {[%clk 0:00:04.7]} 38...
Rde8 {[%clk 0:00:27.8]} 39. Rc3 {[%clk 0:00:03.4]} 39... Re2+ {[%clk 0:00:28.1]}
40. Rxe2 {[%clk 0:00:03.2]} 40... Rxe2+ {[%clk 0:00:28.9]} 41. Kf3 {[%clk
0:00:03.1]} 41... Rxb2 {[%clk 0:00:27.2]} 42. a3 {[%clk 0:00:02.3]} 42... d2
{[%clk 0:00:21]} 43. Ke2 {[%clk 0:00:02.3]} 43... d1=Q+ {[%clk 0:00:20.2]} 44.
Kxd1 {[%clk 0:00:02.5]} 44... Rxh2 {[%clk 0:00:21.1]} 45. a4 {[%clk 0:00:02.3]}
45... Ra2 {[%clk 0:00:18.8]} 46. Rc4 {[%clk 0:00:02.3]} 46... Ra3 {[%clk
0:00:17.4]} 47. g4 {[%clk 0:00:02.5]} 47... h4 {[%clk 0:00:17.2]} 48. Ke2 {[%clk
0:00:02.7]} 48... h3 {[%clk 0:00:17.6]} 49. Kf2 {[%clk 0:00:02.6]} 49... Ra2+
{[%clk 0:00:16.8]} 50. Kg3 {[%clk 0:00:01.7]} 50... h2 {[%clk 0:00:16.6]} 51.
Rc1 {[%clk 0:00:02.6]} 51... Kf7 {[%clk 0:00:16.9]} 52. Rh1 {[%clk 0:00:02.7]}
52... Kg6 {[%clk 0:00:15.9]} 53. Rxh2 {[%clk 0:00:02.1]} 53... Rxa4 {[%clk
0:00:16.3]} 54. Rf2 {[%clk 0:00:02.6]} 54... Ra3+ {[%clk 0:00:15.7]} 55. Kh4
{[%clk 0:00:02.4]} 55... Kh6 {[%clk 0:00:15]} 56. Rf5 {[%clk 0:00:01.8]} 56...
g6 {[%clk 0:00:11.9]} 57. Re5 {[%clk 0:00:01.9]} 57... Ra2 {[%clk 0:00:12.1]}
58. g5+ {[%clk 0:00:02.1]} 58... Kg7 {[%clk 0:00:12.1]} 59. Re4 {[%clk 0:00:03]}
59... Kf7 {[%clk 0:00:12.4]} 60. Kg4 {[%clk 0:00:03.6]} 60... Ra5 {[%clk
0:00:12.7]} 61. Rf4+ {[%clk 0:00:04.5]} 61... Kg7 {[%clk 0:00:11.8]} 62. Rf6
{[%clk 0:00:05.4]} 62... Ra4+ {[%clk 0:00:11.4]} 63. Rf4 {[%clk 0:00:06.3]}
63... Ra5 {[%clk 0:00:11.3]} 64. Re4 {[%clk 0:00:06.5]} 64... Rb5 {[%clk
0:00:11.6]} 65. Rf4 {[%clk 0:00:07.4]} 65... Ra5 {[%clk 0:00:10.7]} 1/2-1/2

[Event "*** Titled Tuesday Blitz"]
[Site "Chess.com"]
[Date "2020.05.19"]
[Round "5"]
[White "Playgood28"]
[Black "plumalka"]
[Result "0-1"]
[WhiteElo "2286"]
[BlackElo "2485"]
[TimeControl "180+1"]
[EndTime "12:58:17 PDT"]
[Termination "plumalka won on time"]

1. d4 {[%clk 0:03:00.9]} 1... Nf6 {[%clk 0:02:59.5]} 2. c4 {[%clk 0:03:00.5]}
2... c5 {[%clk 0:02:59.6]} 3. d5 {[%clk 0:02:59.7]} 3... b5 {[%clk 0:02:59.6]}
4. Qc2 {[%clk 0:02:59.6]} 4... bxc4 {[%clk 0:02:57.9]} 5. e4 {[%clk 0:02:59.2]}
5... d6 {[%clk 0:02:57.5]} 6. Bxc4 {[%clk 0:02:58.8]} 6... g6 {[%clk 0:02:57.9]}
7. Nf3 {[%clk 0:02:58.5]} 7... Bg7 {[%clk 0:02:58.6]} 8. O-O {[%clk 0:02:58.1]}
8... O-O {[%clk 0:02:59.2]} 9. h3 {[%clk 0:02:58.1]} 9... Ba6 {[%clk 0:02:54.2]}
10. Na3 {[%clk 0:02:55.3]} 10... Qb6 {[%clk 0:02:41.9]} 11. Rb1 {[%clk
0:02:49.4]} 11... Nbd7 {[%clk 0:02:39.4]} 12. Bf4 {[%clk 0:02:46.9]} 12... Rab8
{[%clk 0:02:35.6]} 13. Rfe1 {[%clk 0:02:39.4]} 13... Nh5 {[%clk 0:02:21]} 14.
Bh2 {[%clk 0:02:23.5]} 14... Qa5 {[%clk 0:01:46.8]} 15. Bxa6 {[%clk 0:02:08.2]}
15... Qxa6 {[%clk 0:01:47.7]} 16. e5 {[%clk 0:02:07.1]} 16... dxe5 {[%clk
0:01:39.5]} 17. Nxe5 {[%clk 0:02:06]} 17... Nxe5 {[%clk 0:01:36.3]} 18. Bxe5
{[%clk 0:02:05.5]} 18... Bxe5 {[%clk 0:01:34.8]} 19. Rxe5 {[%clk 0:02:04.9]}
19... Qf6 {[%clk 0:01:26.5]} 20. Rbe1 {[%clk 0:01:59.2]} 20... Nf4 {[%clk
0:01:18.2]} 21. Nc4 {[%clk 0:01:52]} 21... Rfd8 {[%clk 0:01:13.4]} 22. Rxe7
{[%clk 0:01:27.3]} 22... Qg5 {[%clk 0:01:03.5]} 23. Qe4 {[%clk 0:01:06.4]} 23...
Nxh3+ {[%clk 0:00:55.5]} 24. Kf1 {[%clk 0:01:03.4]} 24... Nf4 {[%clk 0:00:52.3]}
25. d6 {[%clk 0:00:55.8]} 25... Qh4 {[%clk 0:00:32.2]} 26. g3 {[%clk 0:00:53.7]}
26... Qh3+ {[%clk 0:00:31.5]} 27. Kg1 {[%clk 0:00:53.4]} 27... Ne6 {[%clk
0:00:26.7]} 28. d7 {[%clk 0:00:40.8]} 28... Kf8 {[%clk 0:00:26.6]} 29. Re8+
{[%clk 0:00:28.7]} 29... Rxe8 {[%clk 0:00:27]} 30. dxe8=Q+ {[%clk 0:00:27.9]}
30... Rxe8 {[%clk 0:00:27.9]} 31. Nd6 {[%clk 0:00:27.1]} 31... Re7 {[%clk
0:00:28]} 32. Qa8+ {[%clk 0:00:25.8]} 32... Kg7 {[%clk 0:00:27.8]} 33. Ne8+
{[%clk 0:00:22.1]} 33... Kh6 {[%clk 0:00:26]} 34. Nf6 {[%clk 0:00:21.1]} 34...
Qf5 {[%clk 0:00:23.1]} 35. Nd5 {[%clk 0:00:16.9]} 35... Rd7 {[%clk 0:00:20.9]}
36. Ne3 {[%clk 0:00:16.1]} 36... Qf6 {[%clk 0:00:20.7]} 37. Qh1+ {[%clk
0:00:12.5]} 37... Kg7 {[%clk 0:00:20.7]} 38. Qc6 {[%clk 0:00:12.1]} 38... Nd4
{[%clk 0:00:19.6]} 39. Qxf6+ {[%clk 0:00:11.3]} 39... Kxf6 {[%clk 0:00:19.6]}
40. Kf1 {[%clk 0:00:11.3]} 40... Kg7 {[%clk 0:00:18.7]} 41. Rc1 {[%clk
0:00:11.1]} 41... Rc7 {[%clk 0:00:18.6]} 42. b3 {[%clk 0:00:09.2]} 42... Ne6
{[%clk 0:00:18.7]} 43. Rc4 {[%clk 0:00:08.1]} 43... f5 {[%clk 0:00:16.5]} 44.
Ra4 {[%clk 0:00:07.6]} 44... Kf7 {[%clk 0:00:16.6]} 45. Nd5 {[%clk 0:00:06.9]}
45... Rb7 {[%clk 0:00:16.9]} 46. Ne3 {[%clk 0:00:06]} 46... Nd4 {[%clk 0:00:17]}
47. Nc4 {[%clk 0:00:05.6]} 47... Ke6 {[%clk 0:00:16.9]} 48. Ra6+ {[%clk
0:00:04.6]} 48... Ke7 {[%clk 0:00:15.6]} 49. Kg2 {[%clk 0:00:03.8]} 49... Ne6
{[%clk 0:00:15.5]} 50. Ne5 {[%clk 0:00:03.5]} 50... Rc7 {[%clk 0:00:15]} 51.
Nc6+ {[%clk 0:00:02.5]} 51... Kd7 {[%clk 0:00:13.4]} 52. Na5 {[%clk 0:00:02.2]}
52... Nd4 {[%clk 0:00:11.8]} 53. Nc4 {[%clk 0:00:02.4]} 53... Nb5 {[%clk
0:00:11.6]} 54. Ne5+ {[%clk 0:00:02.5]} 54... Ke7 {[%clk 0:00:11.2]} 55. Nc4
{[%clk 0:00:02.6]} 55... Rb7 {[%clk 0:00:10.3]} 56. Ne5 {[%clk 0:00:02.3]} 56...
Rc7 {[%clk 0:00:10.5]} 57. Nc4 {[%clk 0:00:02.1]} 57... Kd8 {[%clk 0:00:11]} 58.
Ne5 {[%clk 0:00:01.8]} 58... Kc8 {[%clk 0:00:11.2]} 59. Nc4 {[%clk 0:00:01.6]}
59... Kb7 {[%clk 0:00:11.6]} 60. Rf6 {[%clk 0:00:02]} 60... Rd7 {[%clk
0:00:11.5]} 0-1

[Event "*** Titled Tuesday Blitz"]
[Site "Chess.com"]
[Date "2020.05.19"]
[Round "5"]
[White "quesfr"]
[Black "Charlottemillard17"]
[Result "1-0"]
[WhiteElo "2276"]
[BlackElo "1418"]
[TimeControl "180+1"]
[EndTime "12:58:18 PDT"]
[Termination "quesfr won on time"]

1. e4 {[%clk 0:03:00.9]} 1... e5 {[%clk 0:02:55.1]} 2. Nf3 {[%clk 0:03:00.4]}
2... Nc6 {[%clk 0:02:54.1]} 3. d4 {[%clk 0:03:00.6]} 3... exd4 {[%clk
0:02:53.3]} 4. Nxd4 {[%clk 0:03:01.5]} 4... Nxd4 {[%clk 0:02:53.2]} 5. Qxd4
{[%clk 0:03:00.8]} 5... d6 {[%clk 0:02:45.9]} 6. Nc3 {[%clk 0:03:00.8]} 6... Bd7
{[%clk 0:02:44.1]} 7. Bf4 {[%clk 0:02:59]} 7... h6 {[%clk 0:02:42.9]} 8. O-O-O
{[%clk 0:02:56.2]} 8... Qe7 {[%clk 0:02:37]} 9. f3 {[%clk 0:02:51.8]} 9... Nf6
{[%clk 0:02:28.1]} 10. g4 {[%clk 0:02:50.5]} 10... g5 {[%clk 0:02:26.8]} 11. Bg3
{[%clk 0:02:47.6]} 11... Bg7 {[%clk 0:02:26.9]} 12. e5 {[%clk 0:02:38.1]} 12...
Ng8 {[%clk 0:01:34.9]} 13. exd6 {[%clk 0:02:32.9]} 13... Bxd4 {[%clk 0:01:32.8]}
14. dxe7 {[%clk 0:02:32.7]} 14... Be3+ {[%clk 0:01:32.5]} 15. Kb1 {[%clk
0:02:31.9]} 15... Nxe7 {[%clk 0:01:31.2]} 16. Bxc7 {[%clk 0:02:20.2]} 16... Bc6
{[%clk 0:01:22.3]} 17. Ne4 {[%clk 0:02:20.3]} 17... Bxe4 {[%clk 0:01:20.8]} 18.
fxe4 {[%clk 0:02:20.2]} 18... O-O {[%clk 0:01:20.2]} 19. Bd6 {[%clk 0:02:16]}
19... Rfe8 {[%clk 0:01:20.1]} 20. Bb5 {[%clk 0:02:15.9]} 20... Nc6 {[%clk
0:01:17.8]} 21. e5 {[%clk 0:02:05.3]} 21... Bf4 {[%clk 0:01:14.1]} 22. Bxc6
{[%clk 0:01:21.4]} 22... bxc6 {[%clk 0:01:12.8]} 23. Rde1 {[%clk 0:01:21.6]}
23... Rad8 {[%clk 0:01:09.6]} 24. c4 {[%clk 0:01:20.4]} 24... Rd7 {[%clk
0:01:08.8]} 25. Kc2 {[%clk 0:01:19.1]} 25... Rb7 {[%clk 0:01:01.8]} 26. h4
{[%clk 0:01:16.7]} 26... gxh4 {[%clk 0:01:00.5]} 27. b3 {[%clk 0:01:05.8]} 27...
Bg3 {[%clk 0:00:40.8]} 28. Re4 {[%clk 0:00:55.6]} 28... Rb6 {[%clk 0:00:39.4]}
29. c5 {[%clk 0:00:54.6]} 29... Ra6 {[%clk 0:00:39.2]} 30. a4 {[%clk 0:00:54]}
30... Ra5 {[%clk 0:00:38.3]} 31. Kb2 {[%clk 0:00:27.3]} 31... f6 {[%clk
0:00:17.3]} 32. e6 {[%clk 0:00:19.7]} 32... Bxd6 {[%clk 0:00:17.1]} 33. cxd6
{[%clk 0:00:20]} 33... Rd5 {[%clk 0:00:16.6]} 34. d7 {[%clk 0:00:19.4]} 34...
Re7 {[%clk 0:00:15.9]} 35. Rc1 {[%clk 0:00:17.5]} 35... Rdxd7 {[%clk 0:00:15.5]}
36. exd7 {[%clk 0:00:15.3]} 36... Rxd7 {[%clk 0:00:15.3]} 37. Rxc6 {[%clk
0:00:14.4]} 37... Rd2+ {[%clk 0:00:15]} 38. Kc3 {[%clk 0:00:14.5]} 38... Rh2
{[%clk 0:00:14.8]} 39. Rxf6 {[%clk 0:00:14.2]} 39... Kg7 {[%clk 0:00:14.8]} 40.
Rf5 {[%clk 0:00:13.4]} 40... Kg6 {[%clk 0:00:14.4]} 41. Re6+ {[%clk 0:00:13.1]}
41... Kg7 {[%clk 0:00:14.6]} 42. Rh5 {[%clk 0:00:11.8]} 42... h3 {[%clk
0:00:13.8]} 43. Rexh6 {[%clk 0:00:11.3]} 43... Rh1 {[%clk 0:00:11.2]} 44. Rh7+
{[%clk 0:00:10.3]} 44... Kg6 {[%clk 0:00:10.6]} 45. Rxh3 {[%clk 0:00:11.2]}
45... Rg1 {[%clk 0:00:08.9]} 46. R7h6+ {[%clk 0:00:11.3]} 46... Kg7 {[%clk
0:00:08.3]} 47. R6h5 {[%clk 0:00:12.2]} 47... Kg6 {[%clk 0:00:08.2]} 48. g5
{[%clk 0:00:11.6]} 48... Kg7 {[%clk 0:00:07.7]} 49. Kb4 {[%clk 0:00:11]} 49...
Kg6 {[%clk 0:00:07.2]} 50. Rh6+ {[%clk 0:00:10.6]} 50... Kxg5 {[%clk 0:00:05.5]}
51. Ra6 {[%clk 0:00:10.2]} 51... Rg4+ {[%clk 0:00:05]} 52. Ka3 {[%clk
0:00:10.3]} 52... Rg1 {[%clk 0:00:04.2]} 53. Rc3 {[%clk 0:00:09.8]} 53... Ra1+
{[%clk 0:00:03.6]} 54. Kb4 {[%clk 0:00:09.7]} 54... Rf1 {[%clk 0:00:03]} 55.
Rxa7 {[%clk 0:00:09.8]} 55... Kg6 {[%clk 0:00:02.1]} 56. Rc5 {[%clk 0:00:09.9]}
56... Rf4+ {[%clk 0:00:00.9]} 57. Kb5 {[%clk 0:00:10.1]} 1-0

[Event "*** Titled Tuesday Blitz"]
[Site "Chess.com"]
[Date "2020.05.19"]
[Round "5"]
[White "MisiekZielony"]
[Black "almaguerjm"]
[Result "1-0"]
[WhiteElo "2116"]
[BlackElo "2314"]
[TimeControl "180+1"]
[EndTime "12:58:18 PDT"]
[Termination "MisiekZielony won by resignation"]

1. c4 {[%clk 0:02:59.8]} 1... Nf6 {[%clk 0:02:59.1]} 2. Nc3 {[%clk 0:02:59.7]}
2... d6 {[%clk 0:02:57.1]} 3. g3 {[%clk 0:02:59.6]} 3... Nc6 {[%clk 0:02:57.6]}
4. Bg2 {[%clk 0:02:59.9]} 4... e5 {[%clk 0:02:58.3]} 5. e4 {[%clk 0:03:00]} 5...
Bg4 {[%clk 0:02:58.4]} 6. f3 {[%clk 0:02:48]} 6... Be6 {[%clk 0:02:52.6]} 7. d3
{[%clk 0:02:43.4]} 7... Nd4 {[%clk 0:02:46.4]} 8. Nge2 {[%clk 0:02:39.9]} 8...
Qd7 {[%clk 0:02:41]} 9. Nxd4 {[%clk 0:02:21.1]} 9... exd4 {[%clk 0:02:35.5]} 10.
Nd5 {[%clk 0:02:21]} 10... Nxd5 {[%clk 0:02:27.9]} 11. cxd5 {[%clk 0:02:18.4]}
11... Bh3 {[%clk 0:02:27.8]} 12. Bxh3 {[%clk 0:01:58.7]} 12... Qxh3 {[%clk
0:02:28.7]} 13. Qa4+ {[%clk 0:01:56.1]} 13... Kd8 {[%clk 0:02:24.5]} 14. Qc2
{[%clk 0:01:46.6]} 14... Be7 {[%clk 0:02:13.7]} 15. Bd2 {[%clk 0:01:24.5]} 15...
Qg2 {[%clk 0:02:10.3]} 16. O-O-O {[%clk 0:01:23.8]} 16... Qxf3 {[%clk 0:01:58]}
17. Rhf1 {[%clk 0:00:58.8]} 17... Qh5 {[%clk 0:01:57]} 18. Rf5 {[%clk
0:00:58.1]} 18... Qg6 {[%clk 0:01:56.1]} 19. Rdf1 {[%clk 0:00:57.3]} 19... f6
{[%clk 0:01:39.4]} 20. Qa4 {[%clk 0:00:50.1]} 20... Qe8 {[%clk 0:01:29]} 21.
Qxd4 {[%clk 0:00:48.4]} 21... Qb5 {[%clk 0:01:29.1]} 22. Kb1 {[%clk 0:00:46.1]}
22... Kd7 {[%clk 0:01:22.5]} 23. Qe3 {[%clk 0:00:38.2]} 23... a5 {[%clk
0:01:19.8]} 24. Rc1 {[%clk 0:00:35.5]} 24... Rac8 {[%clk 0:01:06]} 25. Qf3
{[%clk 0:00:31.9]} 25... Qa6 {[%clk 0:01:01.2]} 26. Rh5 {[%clk 0:00:29.9]} 26...
Kd8 {[%clk 0:00:58.6]} 27. Rc3 {[%clk 0:00:26.7]} 27... c6 {[%clk 0:00:58.4]}
28. dxc6 {[%clk 0:00:26.6]} 28... Rxc6 {[%clk 0:00:59]} 29. Rd5 {[%clk
0:00:21.8]} 29... Rxc3 {[%clk 0:00:52.1]} 30. Bxc3 {[%clk 0:00:20.8]} 30... b6
{[%clk 0:00:52.6]} 31. Qf5 {[%clk 0:00:19.6]} 31... Qc8 {[%clk 0:00:51.9]} 32.
Qf2 {[%clk 0:00:16.6]} 32... Ke8 {[%clk 0:00:50.8]} 33. Bd4 {[%clk 0:00:16.1]}
33... b5 {[%clk 0:00:48.6]} 34. Rxb5 {[%clk 0:00:15.3]} 34... Kf7 {[%clk
0:00:47.5]} 35. Qc2 {[%clk 0:00:11.2]} 35... Qh3 {[%clk 0:00:44.8]} 36. Qc4+
{[%clk 0:00:09.9]} 36... Kg6 {[%clk 0:00:43.4]} 37. a4 {[%clk 0:00:08.7]} 37...
Rc8 {[%clk 0:00:42.7]} 38. Qd5 {[%clk 0:00:07.9]} 38... Qf1+ {[%clk 0:00:39.1]}
39. Ka2 {[%clk 0:00:07.9]} 39... Rc1 {[%clk 0:00:38.8]} 40. Qf5+ {[%clk
0:00:07.4]} 40... Qxf5 {[%clk 0:00:33.3]} 41. Rxf5 {[%clk 0:00:06.4]} 41... Rd1
{[%clk 0:00:31.7]} 42. Rxa5 {[%clk 0:00:06.3]} 42... Rxd3 {[%clk 0:00:31.7]} 43.
Rd5 {[%clk 0:00:06.8]} 43... Kf7 {[%clk 0:00:29.8]} 44. a5 {[%clk 0:00:05.1]}
44... Bd8 {[%clk 0:00:19.5]} 45. a6 {[%clk 0:00:05.1]} 45... f5 {[%clk
0:00:11.2]} 46. a7 {[%clk 0:00:04.7]} 46... fxe4 {[%clk 0:00:12.1]} 47. a8=Q
{[%clk 0:00:03.5]} 47... Bf6 {[%clk 0:00:12.2]} 48. Qc8 {[%clk 0:00:02.2]} 48...
Rxd4 {[%clk 0:00:11.5]} 49. Rxd4 {[%clk 0:00:02.3]} 49... Bxd4 {[%clk
0:00:12.4]} 50. Qf5+ {[%clk 0:00:02.6]} 50... Bf6 {[%clk 0:00:12.2]} 51. Qxe4
{[%clk 0:00:02.8]} 51... h6 {[%clk 0:00:12.4]} 52. Qd5+ {[%clk 0:00:02.2]} 52...
Ke7 {[%clk 0:00:13]} 53. b4 {[%clk 0:00:02.7]} 53... Bc3 {[%clk 0:00:12.2]} 54.
b5 {[%clk 0:00:03.3]} 54... Ba5 {[%clk 0:00:11.3]} 55. Qc6 {[%clk 0:00:03.5]}
55... d5 {[%clk 0:00:10.4]} 56. b6 {[%clk 0:00:03.7]} 1-0

[Event "*** Titled Tuesday Blitz"]
[Site "Chess.com"]
[Date "2020.05.19"]
[Round "5"]
[White "icychess54"]
[Black "jlandaw"]
[Result "0-1"]
[WhiteElo "2261"]
[BlackElo "2478"]
[TimeControl "180+1"]
[EndTime "12:58:19 PDT"]
[Termination "jlandaw won on time"]

1. c4 {[%clk 0:03:00.9]} 1... e5 {[%clk 0:02:59.5]} 2. Nc3 {[%clk 0:03:00.4]}
2... Nc6 {[%clk 0:02:59.7]} 3. Nf3 {[%clk 0:03:00.8]} 3... Bc5 {[%clk
0:02:58.6]} 4. e3 {[%clk 0:03:01.1]} 4... a6 {[%clk 0:02:56.9]} 5. a3 {[%clk
0:02:59.8]} 5... d6 {[%clk 0:02:56.8]} 6. b4 {[%clk 0:02:59.9]} 6... Ba7 {[%clk
0:02:56.4]} 7. Bb2 {[%clk 0:03:00.5]} 7... Nf6 {[%clk 0:02:56.1]} 8. d4 {[%clk
0:03:00.9]} 8... exd4 {[%clk 0:02:55.6]} 9. Nxd4 {[%clk 0:03:01.1]} 9... Nxd4
{[%clk 0:02:50.6]} 10. exd4 {[%clk 0:03:01.2]} 10... d5 {[%clk 0:02:50.8]} 11.
c5 {[%clk 0:02:55.8]} 11... O-O {[%clk 0:02:46.8]} 12. Be2 {[%clk 0:02:56]}
12... Bf5 {[%clk 0:02:45]} 13. O-O {[%clk 0:02:55.6]} 13... c6 {[%clk
0:02:42.6]} 14. Bc1 {[%clk 0:02:51.7]} 14... Bb8 {[%clk 0:02:34.5]} 15. Bg5
{[%clk 0:02:50.4]} 15... Qc7 {[%clk 0:02:31]} 16. g3 {[%clk 0:02:43]} 16... Qd8
{[%clk 0:02:18.2]} 17. Qd2 {[%clk 0:02:34.7]} 17... h6 {[%clk 0:02:11.6]} 18.
Bf4 {[%clk 0:02:25.7]} 18... Re8 {[%clk 0:02:01]} 19. Rfe1 {[%clk 0:02:23.4]}
19... Qd7 {[%clk 0:01:55.5]} 20. a4 {[%clk 0:02:01.1]} 20... Ne4 {[%clk
0:01:31.7]} 21. Nxe4 {[%clk 0:01:58.8]} 21... dxe4 {[%clk 0:01:32.6]} 22. Bc4
{[%clk 0:01:33.3]} 22... Bxf4 {[%clk 0:01:18.6]} 23. Qxf4 {[%clk 0:01:32.9]}
23... Be6 {[%clk 0:01:19.2]} 24. Bxe6 {[%clk 0:01:18.3]} 24... Qxe6 {[%clk
0:01:20.1]} 25. f3 {[%clk 0:01:08.6]} 25... Qc4 {[%clk 0:00:56.1]} 26. Rxe4
{[%clk 0:00:50.8]} 26... Qxb4 {[%clk 0:00:55.9]} 27. Rae1 {[%clk 0:00:23.6]}
27... Qxe1+ {[%clk 0:00:51.8]} 28. Rxe1 {[%clk 0:00:24.3]} 28... Rxe1+ {[%clk
0:00:52.4]} 29. Kg2 {[%clk 0:00:24.9]} 29... Rae8 {[%clk 0:00:48.8]} 30. Qc7
{[%clk 0:00:20.5]} 30... Rb1 {[%clk 0:00:47.7]} 31. Qd7 {[%clk 0:00:17.4]} 31...
Re2+ {[%clk 0:00:39.9]} 32. Kh3 {[%clk 0:00:17.6]} 32... g6 {[%clk 0:00:38.5]}
33. Kg4 {[%clk 0:00:16.2]} 33... Rb4 {[%clk 0:00:29.4]} 34. h4 {[%clk 0:00:12]}
34... Rd2 {[%clk 0:00:25.5]} 35. Qe8+ {[%clk 0:00:11]} 35... Kg7 {[%clk
0:00:25.5]} 36. Qe5+ {[%clk 0:00:10.7]} 36... Kh7 {[%clk 0:00:26.1]} 37. Qf6
{[%clk 0:00:11]} 37... Rbxd4+ {[%clk 0:00:19.9]} 38. f4 {[%clk 0:00:11]} 38...
h5+ {[%clk 0:00:19.5]} 39. Kh3 {[%clk 0:00:08.9]} 39... Rd7 {[%clk 0:00:19.3]}
40. f5 {[%clk 0:00:09.1]} 40... R2d5 {[%clk 0:00:16.8]} 41. fxg6+ {[%clk
0:00:09.4]} 41... fxg6 {[%clk 0:00:17.7]} 42. Qe6 {[%clk 0:00:09.7]} 42... Rg7
{[%clk 0:00:17.2]} 43. Qe3 {[%clk 0:00:08]} 43... Rf7 {[%clk 0:00:16.6]} 44. a5
{[%clk 0:00:07.8]} 44... Kg7 {[%clk 0:00:16]} 45. Qc3+ {[%clk 0:00:07.5]} 45...
Kg8 {[%clk 0:00:16.5]} 46. Qe3 {[%clk 0:00:07.7]} 46... Rdf5 {[%clk 0:00:08.2]}
47. Qe6 {[%clk 0:00:07.3]} 47... Kg7 {[%clk 0:00:07.9]} 48. Qe3 {[%clk
0:00:07.8]} 48... R5f6 {[%clk 0:00:08.1]} 49. Qc3 {[%clk 0:00:07.8]} 49... Kh7
{[%clk 0:00:08.3]} 50. Qb4 {[%clk 0:00:06.4]} 50... Rf3 {[%clk 0:00:07.7]} 51.
Qd4 {[%clk 0:00:06.6]} 51... Ra3 {[%clk 0:00:07.1]} 52. Qb4 {[%clk 0:00:06.1]}
52... Rff3 {[%clk 0:00:05.9]} 53. Qxb7+ {[%clk 0:00:05.5]} 53... Kh6 {[%clk
0:00:06.1]} 54. Qxc6 {[%clk 0:00:05.3]} 54... Rxg3+ {[%clk 0:00:06.2]} 55. Kh2
{[%clk 0:00:06]} 55... Rgb3 {[%clk 0:00:02.4]} 56. Qxa6 {[%clk 0:00:05.3]} 56...
Ra2+ {[%clk 0:00:02.3]} 57. Kg1 {[%clk 0:00:05]} 57... Rb1+ {[%clk 0:00:02.6]}
58. Qf1 {[%clk 0:00:04.7]} 58... Rxf1+ {[%clk 0:00:03.3]} 59. Kxf1 {[%clk
0:00:05.6]} 59... Rxa5 {[%clk 0:00:03.7]} 60. c6 {[%clk 0:00:06.2]} 60... Rc5
{[%clk 0:00:04.6]} 61. c7 {[%clk 0:00:07]} 61... Rxc7 {[%clk 0:00:05.1]} 62. Kf2
{[%clk 0:00:06.6]} 62... Rc4 {[%clk 0:00:06]} 63. Kg3 {[%clk 0:00:07.5]} 63...
Rg4+ {[%clk 0:00:06.9]} 64. Kh3 {[%clk 0:00:08.4]} 64... Kg7 {[%clk 0:00:07.8]}
65. Kh2 {[%clk 0:00:08.5]} 65... Kf6 {[%clk 0:00:08.7]} 66. Kh3 {[%clk
0:00:09.4]} 66... Kf5 {[%clk 0:00:09.6]} 67. Kh2 {[%clk 0:00:09.8]} 67... Kf4
{[%clk 0:00:10.5]} 68. Kh3 {[%clk 0:00:10.2]} 68... Kf3 {[%clk 0:00:11.1]} 69.
Kh2 {[%clk 0:00:11.1]} 69... Kf2 {[%clk 0:00:11.6]} 0-1